Workbook

Sheet NVM TERRE CONTINENTS
A1: RELEVES D'EVOLUTION DU NIVEAU VIBRATOIRE MOYEN (NVM en K BOVIS)
A3: PERIODE 2019 / 2020 / 2021 / 2022
A6: LA TERRE
A7: Nombre de pays: 194
B9: SOLSTICE 2019 | D9: SOLSTICE 2020 | F9: SOLSTICE 2021 | H9: EQUINOXE 2022
B10: ÉTÉ 21/06/2019 | C10: HIVER 22/12/2019 | D10: ÉTÉ 20/06/2020 | E10: HIVER 21/12/2020 | F10: ÉTÉ 20/06/2021 | G10: HIVER 21/12/2021 | H10: PRINTEMPS 20/03/2022 | I10: HIVER 21/12/2022
A11: NVM TERRE | B11: 89 | C11: 98 | D11: 108 | E11: 115 | F11: 133 | G11: 162 | H11: 207
B12: Evolution sur la prériode % | C12: =C11/B11 -> 1.101123596 | D12: Evolution sur la prériode % | E12: =E11/D11 -> 1.064814815 | F12: Evolution sur la prériode % | G12: =G11/F11 -> 1.218045113
A18: LES CONTINENTS
A20: AMERIQUE (Nord/Sud)
A21: Nombre de pays: Nord 3 pays / Sud 31 pays
B23: SOLSTICE 2019 | D23: SOLSTICE 2020 | F23: SOLSTICE 2021 | H23: EQUINOXE 2022
B24: ÉTÉ 21/06/2019 | C24: HIVER 22/12/2019 | D24: ÉTÉ 20/06/2020 | E24: HIVER 21/12/2020 | F24: ÉTÉ 20/06/2021 | G24: HIVER 21/12/2021 | H24: PRINTEMPS 20/03/2022 | I24: HIVER 21/12/2022
A25: NVM AMERIQUE | B25: 36 | C25: 41 | D25: 43 | E25: 55 | F25: 67 | G25: 84 | H25: 104
B26: Evolution sur la prériode % | C26: =C25/B25 -> 1.138888889 | D26: Evolution sur la prériode % | E26: =E25/D25 -> 1.279069767 | F26: Evolution sur la prériode % | G26: =G25/F25 -> 1.253731343
A32: EUROPE
A33: Nombre de pays : 41
B35: SOLSTICE 2019 | D35: SOLSTICE 2020 | F35: SOLSTICE 2021 | H35: EQUINOXE 2022
B36: ÉTÉ 21/06/2019 | C36: HIVER 22/12/2019 | D36: ÉTÉ 20/06/2020 | E36: HIVER 21/12/2020 | F36: ÉTÉ 20/06/2021 | G36: HIVER 21/12/2021 | H36: PRINTEMPS 20/03/2022 | I36: HIVER 21/12/2022
A37: NVM EUROPE | B37: 37 | C37: 45 | D37: 46 | E37: 58 | F37: 64 | G37: 81 | H37: 97
B38: Evolution sur la prériode % | C38: =C37/B37 -> 1.216216216 | D38: Evolution sur la prériode % | E38: =E37/D37 -> 1.260869565 | F38: Evolution sur la prériode % | G38: =G37/F37 -> 1.265625
A44: ASIE
A45: Nombre de pays : 48
B47: SOLSTICE 2019 | D47: SOLSTICE 2020 | F47: SOLSTICE 2021 | H47: EQUINOXE 2022
B48: ÉTÉ 21/06/2019 | C48: HIVER 22/12/2019 | D48: ÉTÉ 20/06/2020 | E48: HIVER 21/12/2020 | F48: ÉTÉ 20/06/2021 | G48: HIVER 21/12/2021 | H48: PRINTEMPS 20/03/2022 | I48: HIVER 21/12/2022
A49: NVM ASIE | B49: 37 | C49: 49 | D49: 52 | E49: 62 | F49: 70 | G49: 84 | H49: 98
B50: Evolution sur la prériode % | C50: =C49/B49 -> 1.324324324 | D50: Evolution sur la prériode % | E50: =E49/D49 -> 1.192307692 | F50: Evolution sur la prériode % | G50: =G49/F49 -> 1.2
A56: AFRIQUE
A57: Nombre de pays : 54
B59: SOLSTICE 2019 | D59: SOLSTICE 2020 | F59: SOLSTICE 2021 | H59: EQUINOXE 2022
B60: ÉTÉ 21/06/2019 | C60: HIVER 22/12/2019 | D60: ÉTÉ 20/06/2020 | E60: HIVER 21/12/2020 | F60: ÉTÉ 20/06/2021 | G60: HIVER 21/12/2021 | H60: PRINTEMPS 20/03/2022 | I60: HIVER 21/12/2022
A61: NVM AFRIQUE | B61: 39 | C61: 46 | D61: 46 | E61: 56 | F61: 66 | G61: 84 | H61: 122
B62: Evolution sur la prériode % | C62: =C61/B61 -> 1.179487179 | D62: Evolution sur la prériode % | E62: =E61/D61 -> 1.217391304 | F62: Evolution sur la prériode % | G62: =G61/F61 -> 1.272727273
A68: OCEANIE
A69: Nombre de pays : 16
B71: SOLSTICE 2019 | D71: SOLSTICE 2020 | F71: SOLSTICE 2021 | H71: EQUINOXE 2022
B72: ÉTÉ 21/06/2019 | C72: HIVER 22/12/2019 | D72: ÉTÉ 20/06/2020 | E72: HIVER 21/12/2020 | F72: ÉTÉ 20/06/2021 | G72: HIVER 21/12/2021 | H72: PRINTEMPS 20/03/2022 | I72: HIVER 21/12/2022
A73: NVM OCEANIE | B73: 43 | C73: 56 | D73: 56 | E73: 70 | F73: 85 | G73: 99 | H73: 125
B74: Evolution sur la prériode % | C74: =C73/B73 -> 1.302325581 | D74: Evolution sur la prériode % | E74: =E73/D73 -> 1.25 | F74: Evolution sur la prériode % | G74: =G73/F73 -> 1.164705882
A80: ANTARCTIQUE
A81: Non habité
B83: SOLSTICE 2019 | D83: SOLSTICE 2020 | F83: SOLSTICE 2021 | H83: EQUINOXE 2022
B84: ÉTÉ 21/06/2019 | C84: HIVER 22/12/2019 | D84: ÉTÉ 20/06/2020 | E84: HIVER 21/12/2020 | F84: ÉTÉ 20/06/2021 | G84: HIVER 21/12/2021 | H84: PRINTEMPS 20/03/2022 | I84: HIVER 21/12/2022
A85: NVM ANTARCTIQUE | B85: 201 | C85: 245 | D85: 257 | E85: 394 | F85: 307 | G85: 574 | H85: 582
B86: Evolution sur la prériode % | C86: =C85/B85 -> 1.218905473 | D86: Evolution sur la prériode % | E86: =E85/D85 -> 1.53307393 | F86: Evolution sur la prériode % | G86: =G85/F85 -> 1.86970684

Sheet NVM OCEANS
A1: RELEVES D'EVOLUTION DU NIVEAU VIBRATOIRE MOYEN (NVM en K BOVIS)
A3: PERIODE 2019 / 2020 / 2021 / 2022
A5: LES OCEANS
A6: Les Océans & les Mers représentent +/-71% de notre planète - soit 361 millions de Km²
B8: SOLSTICE 2019 | D8: SOLSTICE 2020 | F8: SOLSTICE 2021 | H8: EQUINOXE 2022
B9: ÉTÉ 21/06/2019 | C9: HIVER 22/12/2019 | D9: ÉTÉ 20/06/2020 | E9: HIVER 21/12/2020 | F9: ÉTÉ 20/06/2021 | G9: HIVER 21/12/2021 | H9: PRINTEMPS 20/03/2022 | I9: HIVER 21/12/2022
A10: NVM OCEANS | B10: =(B22+B34+B46+B58+B70)/5 -> 143.4 | C10: =(C22+C34+C46+C58+C70)/5 -> 159.6 | D10: 148.6 | E10: 162.2 | F10: 184 | G10: 211.6 | H10: 222.8
A17: PACIFIQUE
A18: Superficie 165 250 000 Km²
B20: SOLSTICE 2019 | D20: SOLSTICE 2020 | F20: SOLSTICE 2021 | H20: EQUINOXE 2022
B21: ÉTÉ 21/06/2019 | C21: HIVER 22/12/2019 | D21: ÉTÉ 20/06/2020 | E21: HIVER 21/12/2020 | F21: ÉTÉ 20/06/2021 | G21: HIVER 21/12/2021 | H21: PRINTEMPS 20/03/2022 | I21: HIVER 21/12/2022
A22: NVM PACIFIQUE | B22: 138 | C22: 156 | D22: 140 | E22: 158 | F22: 169 | G22: 156 | H22: 168
A29: ATLANTIQUE
A30: Superficie 106 400 000 Km²
B32: SOLSTICE 2019 | D32: SOLSTICE 2020 | F32: SOLSTICE 2021 | H32: EQUINOXE 2022
B33: ÉTÉ 21/06/2019 | C33: HIVER 22/12/2019 | D33: ÉTÉ 20/06/2020 | E33: HIVER 21/12/2020 | F33: ÉTÉ 20/06/2021 | G33: HIVER 21/12/2021 | H33: PRINTEMPS 20/03/2022 | I33: HIVER 21/12/2022
A34: NVM ATLANTIQUE | B34: 122 | C34: 145 | D34: 133 | E34: 138 | F34: 162 | G34: 168 | H34: 177
A41: INDIEN
A42: Superficie 73 556 000 Km²
B44: SOLSTICE 2019 | D44: SOLSTICE 2020 | F44: SOLSTICE 2021 | H44: EQUINOXE 2022
B45: ÉTÉ 21/06/2019 | C45: HIVER 22/12/2019 | D45: ÉTÉ 20/06/2020 | E45: HIVER 21/12/2020 | F45: ÉTÉ 20/06/2021 | G45: HIVER 21/12/2021 | H45: PRINTEMPS 20/03/2022 | I45: HIVER 21/12/2022
A46: NVM INDIEN | B46: 137 | C46: 154 | D46: 144 | E46: 154 | F46: 164 | G46: 192 | H46: 169
A53: AUSTRAL / ANTARCTIQUE
A54: Superficie 20 327 000 Km²
B56: SOLSTICE 2019 | D56: SOLSTICE 2020 | F56: SOLSTICE 2021 | H56: EQUINOXE 2022
B57: ÉTÉ 21/06/2019 | C57: HIVER 22/12/2019 | D57: ÉTÉ 20/06/2020 | E57: HIVER 21/12/2020 | F57: ÉTÉ 20/06/2021 | G57: HIVER 21/12/2021 | H57: PRINTEMPS 20/03/2022 | I57: HIVER 21/12/2022
A58: NVM ANTARCTIQUE | B58: 159 | C58: 174 | D58: 157 | E58: 179 | F58: 212 | G58: 269 | H58: 376
A65: ARCTIQUE
A66: Superficie 14 090 000 Km²
B68: SOLSTICE 2019 | D68: SOLSTICE 2020 | F68: SOLSTICE 2021 | H68: EQUINOXE 2022
B69: ÉTÉ 21/06/2019 | C69: HIVER 22/12/2019 | D69: ÉTÉ 20/06/2020 | E69: HIVER 21/12/2020 | F69: ÉTÉ 20/06/2021 | G69: HIVER 21/12/2021 | H69: PRINTEMPS 20/03/2022 | I69: HIVER 21/12/2022
A70: NVM ARCTIQUE | B70: 161 | C70: 169 | D70: 169 | E70: 182 | F70: 213 | G70: 273 | H70: 224

Sheet AMERIQUE NORD SUD
J5: AMERIQUE
J6: NORD 3 Pays
J9: SOLSTICE | L9: SOLSTICE | N9: SOLSTICE | P9: EQUINOXE
J10: 2019 | L10: 2020 | N10: 2021 | P10: 2022
J11: ÉTÉ | K11: HIVER | L11: ÉTÉ | M11: HIVER | N11: ÉTÉ | O11: HIVER | P11: PRINTEMPS | Q11: HIVER
J12: 2019-06-21 | K12: 2019-12-22 | L12: 2020-06-20 | M12: 2020-12-21 | N12: 2021-06-20 | O12: 2021-12-21 | P12: 2022-03-20 | Q12: 2021-12-21
I13: Canada | J13: 78 | K13: 84 | L13: 101 | M13: 106 | N13: 127 | O13: 147 | P13: 189
I14: États-Unis | J14: 74 | K14: 81 | L14: 97 | M14: 104 | N14: 123 | O14: 138 | P14: 183
I15: Mexique | J15: 83 | K15: 80 | L15: 100 | M15: 99 | N15: 119 | O15: 146 | P15: 192
J18: AMERIQUE
J19: SUD 31 PAYS
A20: Cellule liée | C20: 3
A22: SOLSTICE | C22: SOLSTICE | E22: SOLSTICE | G22: SOLSTICE | J22: SOLSTICE | L22: SOLSTICE | N22: SOLSTICE | P22: EQUINOXE
A23: 2019 | C23: 2020 | E23: 2021 | G23: 2022 | J23: 2019 | L23: 2020 | N23: 2021 | P23: 2022
A24: ÉTÉ | B24: HIVER | C24: ÉTÉ | D24: HIVER | E24: ÉTÉ | F24: HIVER | G24: ÉTÉ | H24: HIVER | J24: ÉTÉ | K24: HIVER | L24: ÉTÉ | M24: HIVER | N24: ÉTÉ | O24: HIVER | P24: PRINTEMPS | Q24: HIVER
A25: 2019-06-21 | B25: 2019-12-22 | C25: 2019-06-20 | D25: 2020-12-21 | E25: 2021-06-20 | F25: 2021-12-21 | G25: 2022-06-20 | H25: 2022-12-21 | J25: 2019-06-21 | K25: 2019-12-22 | L25: 2020-06-20 | M25: 2020-12-21 | N25: 2021-06-20 | O25: 2021-12-21 | P25: 2022-03-20 | Q25: 2022-12-21
A26: =IF($C$20=1,J26,NA()) ->  | I26: Antigua-et-Barbuda | J26: 71 | K26: 72 | L26: 84 | M26: 89 | N26: 110 | O26: 134 | P26: 189
A27: =IF($C$20=2,J27,NA()) ->  | B27: =IF($C$20=2,K27,NA()) ->  | I27: Argentine | J27: 71.08235294 | K27: 79.74127059 | L27: 87.03529412 | M27: 90.85882353 | N27: 127.8352941 | O27: 140.4028235 | P27: 189.7647059 | S27: Bahamas
A28: =IF($C$20=3,J28,NA()) -> 77.2 | B28: =IF($C$20=3,K28,NA()) -> 82.01178824 | C28: 88.85882353 | D28: 98.30588235 | E28: 122.2 | F28: 140.6611765 | G28: 188.6823529 | I28: Bahamas | J28: 77.2 | K28: 82.01178824 | L28: 88.85882353 | M28: 98.30588235 | N28: 122.2 | O28: 140.6611765 | P28: 188.6823529
A29: =IF($C$20=4,J29,NA()) ->  | B29: =IF($C$20=4,K29,NA()) ->  | I29: Barbade | J29: 68.31764706 | K29: 83.0236 | L29: 96.45882353 | M29: 102.3058824 | N29: 123.5176471 | O29: 141.8489412 | P29: 133.604793
A30: =IF($C$20=5,J30,NA()) ->  | B30: =IF($C$20=5,K30,NA()) ->  | I30: Belize | J30: 70.76470588 | K30: 79.22362353 | L30: 96.61176471 | M30: 104.3058824 | N30: 128.6823529 | O30: 144.8847059 | P30: 138.1363834
A31: =IF($C$20=6,J31,NA()) ->  | B31: =IF($C$20=6,K31,NA()) ->  | I31: Bolivie | J31: 75.04705882 | K31: 87.56475294 | L31: 98.30588235 | M31: 107.5176471 | N31: 135.1294118 | O31: 150.0962353 | P31: 141.8200436
A32: =IF($C$20=7,J32,NA()) ->  | B32: =IF($C$20=7,K32,NA()) ->  | I32: Brésil | J32: 75.95294118 | K32: 78.47061176 | L32: 94.45882353 | M32: 98.4 | N32: 117.0470588 | O32: 148.8021176 | P32: 139.5442266
A33: =IF($C$20=8,J33,NA()) ->  | B33: =IF($C$20=8,K33,NA()) ->  | I33: Chili | J33: 76.10588235 | K33: 79.54124706 | L33: 96.44705882 | M33: 111.0588235 | N33: 125.6352941 | O33: 150.0962353 | P33: 145.2361656
A34: =IF($C$20=9,J34,NA()) ->  | B34: =IF($C$20=9,K34,NA()) ->  | I34: Colombie | J34: 75.41176471 | K34: 83.27065882 | L34: 90.65882353 | M34: 106.9529412 | N34: 123.0235294 | O34: 148.52 | P34: 134.540305
A35: =IF($C$20=10,J35,NA()) ->  | B35: =IF($C$20=10,K35,NA()) ->  | I35: Costa Rica | J35: 77.16470588 | K35: 92.27063529 | L35: 111.6470588 | M35: 111.7647059 | N35: 130.6941176 | O35: 151.2614118 | P35: 141.4213508
A36: =IF($C$20=11,J36,NA()) ->  | B36: =IF($C$20=11,K36,NA()) ->  | I36: Cuba | J36: 71.56470588 | K36: 81.88237647 | L36: 101.9882353 | M36: 102.6588235 | N36: 124.6235294 | O36: 144.0376471 | P36: 138.7093682
A37: =IF($C$20=12,J37,NA()) ->  | B37: =IF($C$20=12,K37,NA()) ->  | I37: Dominique | J37: 73.98823529 | K37: 84.98825882 | L37: 94.44705882 | M37: 106.0588235 | N37: 128.1411765 | O37: 149.3432941 | P37: 142.9263617
A38: =IF($C$20=13,J38,NA()) ->  | B38: =IF($C$20=13,K38,NA()) ->  | I38: Équateur | J38: 109.9882353 | K38: 88.51767059 | L38: 111.5529412 | M38: 115.1294118 | N38: 139.6470588 | O38: 154.3665882 | P38: 158.0527233
A39: =IF($C$20=14,J39,NA()) ->  | B39: =IF($C$20=14,K39,NA()) ->  | I39: Grenade | J39: 76.89411765 | K39: 84.29416471 | L39: 107.3647059 | M39: 107.3411765 | N39: 127.6823529 | O39: 145.5428235 | P39: 136.2627451
A40: =IF($C$20=15,J40,NA()) ->  | B40: =IF($C$20=15,K40,NA()) ->  | I40: Guatemala | J40: 79.89411765 | K40: 84.67063529 | L40: 98.07058824 | M40: 109.2823529 | N40: 128.7764706 | O40: 149.6484706 | P40: 150.4091503
A41: =IF($C$20=16,J41,NA()) ->  | B41: =IF($C$20=16,K41,NA()) ->  | I41: Guyana | J41: 80.32941176 | K41: 82.03531765 | L41: 91.89411765 | M41: 110.3176471 | N41: 127.5411765 | O41: 147.6145882 | P41: 143.2453159
A42: =IF($C$20=17,J42,NA()) ->  | B42: =IF($C$20=17,K42,NA()) ->  | I42: Haïti | J42: 66.08235294 | K42: 75.17649412 | L42: 87.44705882 | M42: 99.91764706 | N42: 111.2588235 | O42: 127.2023529 | P42: 133.7015251
A43: =IF($C$20=18,J43,NA()) ->  | B43: =IF($C$20=18,K43,NA()) ->  | I43: Honduras | J43: 72.87058824 | K43: 80.28242353 | L43: 89.92941176 | M43: 98.45882353 | N43: 126 | O43: 145.6138824 | P43: 141.687146
A44: =IF($C$20=19,J44,NA()) ->  | B44: =IF($C$20=19,K44,NA()) ->  | I44: Jamaïque | J44: 76.98823529 | K44: 91.52943529 | L44: 94.14117647 | M44: 105.7764706 | N44: 135.4941176 | O44: 146.7552941 | P44: 142.6400871
A45: =IF($C$20=20,J45,NA()) ->  | B45: =IF($C$20=20,K45,NA()) ->  | I45: Nicaragua | J45: 73.35294118 | K45: 91.45889412 | L45: 90.4 | M45: 101.2705882 | N45: 129.8 | O45: 134.9663529 | P45: 140.367756
A46: =IF($C$20=21,J46,NA()) ->  | B46: =IF($C$20=21,K46,NA()) ->  | I46: Panama | J46: 79.30588235 | K46: 93.7412 | L46: 106.0470588 | M46: 108.7411765 | N46: 131.9647059 | O46: 145.0494118 | P46: 139.7533769
A47: =IF($C$20=22,J47,NA()) ->  | B47: =IF($C$20=22,K47,NA()) ->  | I47: Paraguay | J47: 79.88235294 | K47: 90.94124706 | L47: 100.7764706 | M47: 115.2 | N47: 141.2 | O47: 149.9548235 | P47: 144.827451
A48: =IF($C$20=23,J48,NA()) ->  | B48: =IF($C$20=23,K48,NA()) ->  | I48: Pérou | J48: 88.76470588 | K48: 96.77651765 | L48: 101.5647059 | M48: 115.5529412 | N48: 138.4352941 | O48: 156.7785882 | P48: 153.195207
A49: =IF($C$20=24,J49,NA()) ->  | B49: =IF($C$20=24,K49,NA()) ->  | I49: République dominicaine | J49: 75.14117647 | K49: 89.08237647 | L49: 93.17647059 | M49: 113.8352941 | N49: 137.7176471 | O49: 148.5903529 | P49: 147.9320261
A50: =IF($C$20=25,J50,NA()) ->  | B50: =IF($C$20=25,K50,NA()) ->  | I50: Sainte-Lucie | J50: 84.32941176 | K50: 89.31771765 | L50: 96.83529412 | M50: 99.57647059 | N50: 140.0823529 | O50: 139.9908235 | P50: 144.3224401
A51: =IF($C$20=26,J51,NA()) ->  | B51: =IF($C$20=26,K51,NA()) ->  | I51: Salvador | J51: 77.35294118 | K51: 90.47061176 | L51: 105.1764706 | M51: 110.6470588 | N51: 133.0470588 | O51: 143.9672941 | P51: 146.3132898
A52: =IF($C$20=27,J52,NA()) ->  | B52: =IF($C$20=27,K52,NA()) ->  | I52: St-Vincent-et-les-Grenadines | J52: 79.77647059 | K52: 92.55298824 | L52: 100.1529412 | M52: 106.8823529 | N52: 137.1764706 | O52: 148.6729412 | P52: 147.708061
A53: =IF($C$20=28,J53,NA()) ->  | B53: =IF($C$20=28,K53,NA()) ->  | I53: Suriname | J53: 79.72941176 | K53: 86.42355294 | L53: 96.96470588 | M53: 107.0705882 | N53: 134.7647059 | O53: 150.5905882 | P53: 148.0736383
A54: =IF($C$20=29,J54,NA()) ->  | B54: =IF($C$20=29,K54,NA()) ->  | I54: Trinité-et-Tobago | J54: 80.04705882 | K54: 85.40007059 | L54: 97.44705882 | M54: 106.9176471 | N54: 126.6 | O54: 144.2258824 | P54: 149.0562092
A55: =IF($C$20=30,J55,NA()) ->  | B55: =IF($C$20=30,K55,NA()) ->  | I55: Uruguay | J55: 72.9 | K55: 89.16475294 | L55: 107.0705882 | M55: 110.5294118 | N55: 127.2 | O55: 154.484 | P55: 155.9934641
A56: =IF($C$20=31,J56,NA()) ->  | B56: =IF($C$20=31,K56,NA()) ->  | I56: Venezuela | J56: 81.47058824 | K56: 92.32943529 | L56: 106.7294118 | M56: 104.5764706 | N56: 145.5294118 | O56: 158.8609412 | P56: 157.5376906
S67: Superficie : 42,55 millions km²
S68: Population : 1,002 milliard (2016)
S69: Densité : 24 hab./km2

Sheet PAYS EUROPE
J6: EUROPE
J7: 44 PAYS
A9: Cellule liée | C9: 5
A11: SOLSTICE | C11: SOLSTICE | E11: SOLSTICE | G11: SOLSTICE | J11: SOLSTICE | L11: SOLSTICE | N11: SOLSTICE | P11: EQUINOXE
A12: 2019 | C12: 2020 | E12: 2021 | G12: 2022 | J12: 2019 | L12: 2020 | N12: 2021 | P12: 2022
A13: ÉTÉ | B13: HIVER | C13: ÉTÉ | D13: HIVER | E13: ÉTÉ | F13: HIVER | G13: ÉTÉ | H13: HIVER | J13: ÉTÉ | K13: HIVER | L13: ÉTÉ | M13: HIVER | N13: ÉTÉ | O13: HIVER | P13: PRINTEMPS | Q13: HIVER
A14: 2019-06-21 | B14: 2019-12-22 | C14: 2019-06-20 | D14: 2020-12-21 | E14: 2021-06-20 | F14: 2021-12-21 | G14: 2022-06-20 | H14: 2022-12-21 | J14: 2019-06-21 | K14: 2019-12-22 | L14: 2020-06-20 | M14: 2020-12-21 | N14: 2021-06-20 | O14: 2021-12-21 | P14: 2022-03-20 | Q14: 2022-12-21
A15: =IF($C$9=1,J15,NA()) ->  | B15: =IF($C$9=1,K15,NA()) ->  | H15: 850 | I15: Albanie | J15: 56.68235294 | K15: 67.01176471 | L15: 70.09411765 | M15: 81.78823529 | N15: 100.5764706 | O15: 119.1764706 | P15: 160.8117647 | Q15: 850
A16: =IF($C$9=2,J16,NA()) ->  | B16: =IF($C$9=2,K16,NA()) ->  | H16: 700 | I16: Allemagne | J16: 61.57647059 | K16: 68.89411765 | L16: 78.62352941 | M16: 85.22352941 | N16: 97.47058824 | O16: 120.8823529 | P16: 164.4352941 | Q16: 700
A17: =IF($C$9=3,J17,NA()) ->  | B17: =IF($C$9=3,K17,NA()) ->  | H17: 650 | I17: Andorre | J17: 65.84705882 | K17: 70.17647059 | L17: 76.97647059 | M17: 85.51764706 | N17: 105.1647059 | O17: 119.8470588 | P17: 170.2823529 | Q17: 650
A18: =IF($C$9=4,J18,NA()) ->  | B18: =IF($C$9=4,K18,NA()) ->  | H18: 800 | I18: Arménie | J18: 60.29411765 | K18: 65.07058824 | L18: 69.35294118 | M18: 82.76470588 | N18: 99.94117647 | O18: 114.5764706 | P18: 169.6588235 | Q18: 800
A19: =IF($C$9=5,J19,NA()) -> 67.70588235 | B19: =IF($C$9=5,K19,NA()) -> 71.63529412 | C19: 80.2 | D19: 87.62352941 | E19: 109.8588235 | F19: 128.8705882 | G19: 182.2941176 | H19: 750 | I19: Autriche | J19: 67.70588235 | K19: 71.63529412 | L19: 80.2 | M19: 87.62352941 | N19: 109.8588235 | O19: 128.8705882 | P19: 182.2941176 | Q19: 750
A20: =IF($C$9=6,J20,NA()) ->  | B20: =IF($C$9=6,K20,NA()) ->  | H20: 880 | I20: Belgique | J20: 68.09411765 | K20: 72.81176471 | L20: 81.09411765 | M20: 87.51764706 | N20: 110 | O20: 123.2705882 | P20: 176.6470588 | Q20: 880
A21: =IF($C$9=7,J21,NA()) ->  | B21: =IF($C$9=7,K21,NA()) ->  | H21: 880 | I21: Biélorussie | J21: 59.98823529 | K21: 64.36470588 | L21: 70.08235294 | M21: 79.32941176 | N21: 98.90588235 | O21: 112.4941176 | P21: 164.8588235 | Q21: 880
A22: =IF($C$9=8,J22,NA()) ->  | B22: =IF($C$9=8,K22,NA()) ->  | H22: 880 | I22: Bosnie-Herzégovine | J22: 59.63529412 | K22: 62.12941176 | L22: 68.89411765 | M22: 79.2 | N22: 96.57647059 | O22: 114.3647059 | P22: 160.0823529 | Q22: 880
A23: =IF($C$9=9,J23,NA()) ->  | B23: =IF($C$9=9,K23,NA()) ->  | H23: 870 | I23: Bulgarie | J23: 62.30588235 | K23: 69.65882353 | L23: 81.18823529 | M23: 88.10588235 | N23: 109.1294118 | O23: 123.5058824 | P23: 170.9529412 | Q23: 870
A24: =IF($C$9=10,J24,NA()) ->  | B24: =IF($C$9=10,K24,NA()) ->  | H24: 800 | I24: Croatie | J24: 65.27058824 | K24: 68.91764706 | L24: 77.14117647 | M24: 84.31764706 | N24: 100.8941176 | O24: 120.3647059 | P24: 169.8705882 | Q24: 800
A25: =IF($C$9=11,J25,NA()) ->  | B25: =IF($C$9=11,K25,NA()) ->  | H25: 500 | I25: Danemark | J25: 72.54117647 | K25: 75.64705882 | L25: 87.48235294 | M25: 98.35294118 | N25: 116.2235294 | O25: 133.3529412 | P25: 189.2705882 | Q25: 500
A26: =IF($C$9=12,J26,NA()) ->  | B26: =IF($C$9=12,K26,NA()) ->  | H26: 650 | I26: Espagne | J26: 69.42352941 | K26: 69 | L26: 80.12941176 | M26: 90.68235294 | N26: 111.3411765 | O26: 126.2705882 | P26: 184.7764706 | Q26: 650
A27: =IF($C$9=13,J27,NA()) ->  | B27: =IF($C$9=13,K27,NA()) ->  | H27: 620 | I27: Finlande | J27: 72.84705882 | K27: 82.64705882 | L27: 89.74117647 | M27: 103.3411765 | N27: 123.4470588 | O27: 139.7058824 | P27: 195.9529412 | Q27: 620
A28: =IF($C$9=14,J28,NA()) ->  | B28: =IF($C$9=14,K28,NA()) ->  | H28: 580 | I28: France | J28: 74.27058824 | K28: 75.47058824 | L28: 79.51764706 | M28: 93.74117647 | N28: 112.3058824 | O28: 129.9411765 | P28: 191.6470588 | Q28: 580
A29: =IF($C$9=15,J29,NA()) ->  | B29: =IF($C$9=15,K29,NA()) ->  | H29: 650 | I29: Grèce | J29: 68.74117647 | K29: 69.78823529 | L29: 78.51764706 | M29: 92.68235294 | N29: 109.8470588 | O29: 130.5294118 | P29: 184.3058824 | Q29: 650
A30: =IF($C$9=16,J30,NA()) ->  | B30: =IF($C$9=16,K30,NA()) ->  | H30: 750 | I30: Hongrie | J30: 62.90588235 | K30: 66.57647059 | L30: 77.87058824 | M30: 90.98823529 | N30: 103.3294118 | O30: 120.4941176 | P30: 170.8588235 | Q30: 750
A31: =IF($C$9=17,J31,NA()) ->  | B31: =IF($C$9=17,K31,NA()) ->  | H31: 900 | I31: Irlande | J31: 69.61176471 | K31: 73.36470588 | L31: 84.63529412 | M31: 96.82352941 | N31: 120.4 | O31: 136.6352941 | P31: 188.0705882 | Q31: 900
A32: =IF($C$9=18,J32,NA()) ->  | B32: =IF($C$9=18,K32,NA()) ->  | H32: 920 | I32: Islande | J32: 74.83529412 | K32: 78.41176471 | L32: 92.18823529 | M32: 106.1294118 | N32: 121.7176471 | O32: 140.8352941 | P32: 189.4235294 | Q32: 920
A33: =IF($C$9=19,J33,NA()) ->  | B33: =IF($C$9=19,K33,NA()) ->  | H33: 950 | I33: Italie | J33: 66.55294118 | K33: 68.21176471 | L33: 78.67058824 | M33: 89.88235294 | N33: 104.2588235 | O33: 127.0352941 | P33: 176.9529412 | Q33: 950
A34: =IF($C$9=20,J34,NA()) ->  | B34: =IF($C$9=20,K34,NA()) ->  | H34: 750 | I34: Lettonie | J34: 60.76470588 | K34: 64.89411765 | L34: 73.35294118 | M34: 88.64705882 | N34: 102.4705882 | O34: 120.0352941 | P34: 172.8 | Q34: 750
A35: =IF($C$9=21,J35,NA()) ->  | B35: =IF($C$9=21,K35,NA()) ->  | H35: 840 | I35: Liechtenstein | J35: 66.55294118 | K35: 69.55294118 | L35: 82.18823529 | M35: 85.62352941 | N35: 103.9176471 | O35: 120.2823529 | P35: 170.4352941 | Q35: 840
A36: =IF($C$9=22,J36,NA()) ->  | B36: =IF($C$9=22,K36,NA()) ->  | H36: 750 | I36: Lituanie | J36: 61.35294118 | K36: 64.69411765 | L36: 74.47058824 | M36: 83.36470588 | N36: 100.0941176 | O36: 117.2705882 | P36: 171.3058824 | Q36: 750
A37: =IF($C$9=23,J37,NA()) ->  | B37: =IF($C$9=23,K37,NA()) ->  | H37: 840 | I37: Luxembourg | J37: 66.78823529 | K37: 69.47058824 | L37: 79.63529412 | M37: 86.17882353 | N37: 107.0235294 | O37: 126.5764706 | P37: 184.1882353 | Q37: 840
A38: =IF($C$9=24,J38,NA()) ->  | B38: =IF($C$9=24,K38,NA()) ->  | H38: 750 | I38: Macédoine du Nord | J38: 62.6 | K38: 67.2 | L38: 79.54117647 | M38: 82.89411765 | N38: 102.4823529 | O38: 115.5058824 | P38: 165.8235294 | Q38: 750
A39: =IF($C$9=25,J39,NA()) ->  | B39: =IF($C$9=25,K39,NA()) ->  | H39: 980 | I39: Malte | J39: 64.48235294 | K39: 75.22352941 | L39: 75.69411765 | M39: 83.25882353 | N39: 102.9058824 | O39: 118.1294118 | P39: 173.9764706 | Q39: 980
A40: =IF($C$9=26,J40,NA()) ->  | B40: =IF($C$9=26,K40,NA()) ->  | H40: 100 | I40: Moldavie | J40: 60.32941176 | K40: 68.11764706 | L40: 74.91764706 | M40: 84.08235294 | N40: 100.9882353 | O40: 114.7764706 | P40: 162.1882353 | Q40: 100
A41: =IF($C$9=27,J41,NA()) ->  | B41: =IF($C$9=27,K41,NA()) ->  | H41: 120 | I41: Monaco | J41: 68.62352941 | K41: 74.76470588 | L41: 83.42352941 | M41: 92.97647059 | N41: 110.5529412 | O41: 126.0117647 | P41: 185.0352941 | Q41: 120
A42: =IF($C$9=28,J42,NA()) ->  | B42: =IF($C$9=28,K42,NA()) ->  | H42: 140 | I42: Monténégro | J42: 63.83529412 | K42: 73.71764706 | L42: 81.8 | M42: 88.22352941 | N42: 109.2117647 | O42: 126.6588235 | P42: 178.7764706 | Q42: 140
A43: =IF($C$9=29,J43,NA()) ->  | B43: =IF($C$9=29,K43,NA()) ->  | H43: 150 | I43: Norvège | J43: 77.12941176 | K43: 81.78823529 | L43: 92.92941176 | M43: 103.9294118 | N43: 121.0588235 | O43: 137.6588235 | P43: 198.1529412 | Q43: 150
A44: =IF($C$9=30,J44,NA()) ->  | B44: =IF($C$9=30,K44,NA()) ->  | H44: 100 | I44: Pays-Bas | J44: 67.38823529 | K44: 73.4 | L44: 88.8 | M44: 93.04705882 | N44: 110.8352941 | O44: 130.5411765 | P44: 183.6470588 | Q44: 100
A45: =IF($C$9=31,J45,NA()) ->  | B45: =IF($C$9=31,K45,NA()) ->  | H45: 140 | I45: Pologne | J45: 65.47058824 | K45: 66.32941176 | L45: 79.56470588 | M45: 92.03529412 | N45: 105.9294118 | O45: 120.3764706 | P45: 173.2705882 | Q45: 140
A46: =IF($C$9=32,J46,NA()) ->  | B46: =IF($C$9=32,K46,NA()) ->  | H46: 140 | I46: Portugal | J46: 68.82352941 | K46: 70.57647059 | L46: 84.32941176 | M46: 93.84705882 | N46: 107.9647059 | O46: 128.6352941 | P46: 185.7411765 | Q46: 140
A47: =IF($C$9=33,J47,NA()) ->  | B47: =IF($C$9=33,K47,NA()) ->  | H47: 140 | I47: Roumanie | J47: 66.51764706 | K47: 66.27058824 | L47: 70.15294118 | M47: 87.65882353 | N47: 100.0705882 | O47: 113.5294118 | P47: 163.4352941 | Q47: 140
A48: =IF($C$9=34,J48,NA()) ->  | B48: =IF($C$9=34,K48,NA()) ->  | H48: 140 | I48: Royaume-Uni | J48: 62.31764706 | K48: 60.56470588 | L48: 72.07058824 | M48: 77.4 | N48: 103.7647059 | O48: 108.0705882 | P48: 154.8705882 | Q48: 140
A49: =IF($C$9=35,J49,NA()) ->  | B49: =IF($C$9=35,K49,NA()) ->  | H49: =IF($C$9=33,Q49,NA()) ->  | I49: Russie | J49: 64.21176471 | K49: 70.16470588 | L49: 75.82352941 | M49: 87.65882353 | N49: 102.2235294 | O49: 118.5529412 | P49: 159.2235294 | Q49: 140
A50: =IF($C$9=36,J50,NA()) ->  | B50: =IF($C$9=36,K50,NA()) ->  | H50: 140 | I50: Saint-Marin | J50: 61.49411765 | K50: 64.28235294 | L50: 77.23529412 | M50: 89.65882353 | N50: 106.0235294 | O50: 121.8117647 | P50: 172.5529412 | Q50: 140
A51: =IF($C$9=37,J51,NA()) ->  | B51: =IF($C$9=37,K51,NA()) ->  | H51: 140 | I51: Serbie | J51: 58.4 | K51: 63.77647059 | L51: 74.75294118 | M51: 76 | N51: 95.69411765 | O51: 109.4235294 | P51: 159.4117647 | Q51: 140
A52: =IF($C$9=38,J52,NA()) ->  | B52: =IF($C$9=38,K52,NA()) ->  | H52: 140 | I52: Slovaquie | J52: 57.83529412 | K52: 62.4 | L52: 78.45882353 | M52: 81.6 | N52: 96.97647059 | O52: 111.5882353 | P52: 155.8470588 | Q52: 140
A53: =IF($C$9=39,J53,NA()) ->  | B53: =IF($C$9=39,K53,NA()) ->  | H53: 140 | I53: Slovénie | J53: 78.38823529 | K53: 66.75294118 | L53: 72.95305882 | M53: 81.71764706 | N53: 99.95294118 | O53: 111.0588235 | P53: 159.1058824 | Q53: 140
A54: =IF($C$9=40,J54,NA()) ->  | B54: =IF($C$9=40,K54,NA()) ->  | H54: 140 | I54: Suède | J54: 73.70588235 | K54: 77.63529412 | L54: 94.96482353 | M54: 102.4705882 | N54: 117.3294118 | O54: 143.0352941 | P54: 198.0470588 | Q54: 140
A55: =IF($C$9=41,J55,NA()) ->  | B55: =IF($C$9=41,K55,NA()) ->  | H55: 140 | I55: Suisse | J55: 67.12941176 | K55: 78.02352941 | L55: 87.78835294 | M55: 95.67058824 | N55: 112.6352941 | O55: 136.1764706 | P55: 191.5176471 | Q55: 140
A56: =IF($C$9=42,J56,NA()) ->  | B56: =IF($C$9=42,K56,NA()) ->  | H56: 140 | I56: Tchéquie | J56: 63.37647059 | K56: 67.31764706 | L56: 73.68247059 | M56: 88.95294118 | N56: 100.8941176 | O56: 119.0352941 | P56: 170.2 | Q56: 140
A57: =IF($C$9=43,J57,NA()) ->  | B57: =IF($C$9=43,K57,NA()) ->  | H57: 140 | I57: Ukraine | J57: 59.31764706 | K57: 60.91764706 | L57: 62.89423529 | M57: 72.84705882 | N57: 83.85882353 | O57: 101.4705882 | P57: 138.5764706 | Q57: 140
A58: =IF($C$9=44,J58,NA()) ->  | B58: =IF($C$9=44,K58,NA()) ->  | H58: 140 | I58: Rép. Féd. De Yougoslavie | J58: 60.51764706 | K58: 62.63529412 | L58: 68.63543529 | M58: 84.43529412 | N58: 81 | O58: 113.6117647 | P58: 158.7647059 | Q58: 140
S62: Superficie : 10,18 millions km²
S63: Population : 746,4 millions (2018)
S64: Densité : 73 hab./km2

Sheet PAYS D'ASIE
I6: ASIE
I7: 48 PAYS
A10: Cellule liée | C10: 9
A12: SOLSTICE | C12: SOLSTICE | E12: SOLSTICE | G12: SOLSTICE | I12: SOLSTICE | K12: SOLSTICE | M12: SOLSTICE | O12: EQUINOXE
A13: 2019 | C13: 2020 | E13: 2021 | G13: 2022 | I13: 2019 | K13: 2020 | M13: 2021 | O13: 2022
A14: ÉTÉ | B14: HIVER | C14: ÉTÉ | D14: HIVER | E14: ÉTÉ | F14: HIVER | G14: ÉTÉ | I14: ÉTÉ | J14: HIVER | K14: ÉTÉ | L14: HIVER | M14: ÉTÉ | N14: HIVER | O14: PRINTEMPS | P14: HIVER
A15: 2019-06-21 | B15: 2019-12-22 | C15: 2019-06-20 | D15: 2020-12-21 | E15: 2021-06-20 | F15: 2021-12-21 | G15: 2022-06-20 | I15: 2019-06-21 | J15: 2019-12-22 | K15: 2020-06-20 | L15: 2020-12-21 | M15: 2021-06-20 | N15: 2021-12-21 | O15: 2022-03-20 | P15: 2022-12-21
A16: =IF($C$10=1,I16,NA()) ->  | B16: =IF($C$10=1,J16,NA()) ->  | H16: Afghanistan | I16: 53.14117647 | J16: 64.45882353 | K16: 72.21176471 | L16: 86.02352941 | M16: 96.67058824 | N16: 120.0705882 | O16: 149.532
A17: =IF($C$10=2,I17,NA()) ->  | B17: =IF($C$10=2,J17,NA()) ->  | H17: Arabie saoudite | I17: 59.04705882 | J17: 69.47058824 | K17: 76.90588235 | L17: 85.69411765 | M17: 98.25882353 | N17: 124.8235294 | O17: 158.1792941 | R17: Afghanistan
A18: =IF($C$10=3,I18,NA()) ->  | B18: =IF($C$10=3,J18,NA()) ->  | H18: Arménie | I18: 55.49411765 | J18: 68.47058824 | K18: 71.27058824 | L18: 85.72941176 | M18: 100.2352941 | N18: 128.5294118 | O18: 159.3442353
A19: =IF($C$10=4,I19,NA()) ->  | B19: =IF($C$10=4,J19,NA()) ->  | H19: Azerbaïdjan | I19: 50.74117647 | J19: 67.30588235 | K19: 75.42352941 | L19: 88.22352941 | M19: 98.25882353 | N19: 117.0117647 | O19: 149.6974118
A20: =IF($C$10=5,I20,NA()) ->  | B20: =IF($C$10=5,J20,NA()) ->  | H20: Bahreïn | I20: 56.56470588 | J20: 67.16470588 | K20: 78.72941176 | L20: 88.77647059 | M20: 100.7294118 | N20: 122.9294118 | O20: 166.3204706
A21: =IF($C$10=6,I21,NA()) ->  | B21: =IF($C$10=6,J21,NA()) ->  | H21: Bangladesh | I21: 54.54117647 | J21: 63.07058824 | K21: 77.84705882 | L21: 92.64705882 | M21: 99.27058824 | N21: 123.2588235 | O21: 159.4030588
A22: =IF($C$10=7,I22,NA()) ->  | B22: =IF($C$10=7,J22,NA()) ->  | H22: Bhoutan | I22: 68.05882353 | J22: 74.82352941 | K22: 91.31764706 | L22: 98.98823529 | M22: 111.8941176 | N22: 140.7411765 | O22: 192.0969412
A23: =IF($C$10=8,I23,NA()) ->  | B23: =IF($C$10=8,J23,NA()) ->  | H23: Birmanie | I23: 58.8 | J23: 65.24705882 | K23: 77.41176471 | L23: 97.56470588 | M23: 117.1529412 | N23: 144.5294118 | O23: 175.8028235
A24: =IF($C$10=9,I24,NA()) -> 62.8 | B24: =IF($C$10=9,J24,NA()) -> 68.41176471 | C24: 80.62352941 | D24: 96.90588235 | E24: 110.5647059 | F24: 136.6941176 | G24: 172.2731765 | H24: Brunei | I24: 62.8 | J24: 68.41176471 | K24: 80.62352941 | L24: 96.90588235 | M24: 110.5647059 | N24: 136.6941176 | O24: 172.2731765
A25: =IF($C$10=10,I25,NA()) ->  | B25: =IF($C$10=10,J25,NA()) ->  | H25: Cambodge | I25: 63.70588235 | J25: 67.70588235 | K25: 83.75294118 | L25: 97.82352941 | M25: 112.9411765 | N25: 136.8 | O25: 171.8729412
A26: =IF($C$10=11,I26,NA()) ->  | B26: =IF($C$10=11,J26,NA()) ->  | H26: Corée du Nord | I26: 53.23529412 | J26: 62.47058824 | K26: 73.28235294 | L26: 82.52941176 | M26: 96.74117647 | N26: 119.5058824 | O26: 147.9552941
A27: =IF($C$10=12,I27,NA()) ->  | B27: =IF($C$10=12,J27,NA()) ->  | H27: Corée du Sud | I27: 63.12941176 | J27: 67.29411765 | K27: 81.35294118 | L27: 97.6 | M27: 109.8352941 | N27: 138.4235294 | O27: 168.3082353
A28: =IF($C$10=13,I28,NA()) ->  | B28: =IF($C$10=13,J28,NA()) ->  | H28: Émirats arabes unis | I28: 69.03529412 | J28: 75.70588235 | K28: 90.90588235 | L28: 95.36470588 | M28: 111.7529412 | N28: 138.5176471 | O28: 174.5557647
A29: =IF($C$10=14,I29,NA()) ->  | B29: =IF($C$10=14,J29,NA()) ->  | H29: Géorgie | I29: 65.07058824 | J29: 70.10588235 | K29: 86.52941176 | L29: 93.43529412 | M29: 113.9647059 | N29: 136.0235294 | O29: 169.4847059
A30: =IF($C$10=15,I30,NA()) ->  | B30: =IF($C$10=15,J30,NA()) ->  | H30: Inde | I30: 72.14117647 | J30: 70.28235294 | K30: 91.43529412 | L30: 114.8 | M30: 134.6 | N30: 157.7647059 | O30: 215.0611765
A31: =IF($C$10=16,I31,NA()) ->  | B31: =IF($C$10=16,J31,NA()) ->  | H31: Indonésie | I31: 62 | J31: 78.09411765 | K31: 88.45882353 | L31: 111.3294118 | M31: 123.8941176 | N31: 152.9411765 | O31: 203.732
A32: =IF($C$10=17,I32,NA()) ->  | B32: =IF($C$10=17,J32,NA()) ->  | H32: Irak | I32: 57.07058824 | J32: 63.81176471 | K32: 69.43529412 | L32: 82.83529412 | M32: 96.91764706 | N32: 116.9058824 | O32: 150.0734118
A33: =IF($C$10=18,I33,NA()) ->  | B33: =IF($C$10=18,J33,NA()) ->  | H33: Iran | I33: 59.61176471 | J33: 57.03529412 | K33: 70.11764706 | L33: 86.87058824 | M33: 97.87058824 | N33: 114.8823529 | O33: 148.2028235
A34: =IF($C$10=19,I34,NA()) ->  | B34: =IF($C$10=19,J34,NA()) ->  | H34: Israël | I34: 69.95294118 | J34: 75.41176471 | K34: 90.49411765 | L34: 101.0823529 | M34: 123.1176471 | N34: 149.6588235 | O34: 204.2498824
A35: =IF($C$10=20,I35,NA()) ->  | B35: =IF($C$10=20,J35,NA()) ->  | H35: Japon | I35: 77.41176471 | J35: 83.82352941 | K35: 95.95294118 | L35: 108.7411765 | M35: 131.5411765 | N35: 158.9764706 | O35: 197.3207059
A36: =IF($C$10=21,I36,NA()) ->  | B36: =IF($C$10=21,J36,NA()) ->  | H36: Jordanie | I36: 66.78823529 | J36: 71.45882353 | K36: 81.67058824 | L36: 98.82352941 | M36: 108.5529412 | N36: 138.3529412 | O36: 187.4969412
A37: =IF($C$10=22,I37,NA()) ->  | B37: =IF($C$10=22,J37,NA()) ->  | H37: Kazakhstan | I37: 66.54117647 | J37: 70.61176471 | K37: 80.07058824 | L37: 91.94117647 | M37: 111.3411765 | N37: 130.6235294 | O37: 163.5908235
A38: =IF($C$10=23,I38,NA()) ->  | B38: =IF($C$10=23,J38,NA()) ->  | H38: Kirghizistan | I38: 61.68235294 | J38: 69.29411765 | K38: 76.30588235 | L38: 91.95294118 | M38: 109.0470588 | N38: 126.8705882 | O38: 161.2614118
A39: =IF($C$10=24,I39,NA()) ->  | B39: =IF($C$10=24,J39,NA()) ->  | H39: Koweït | I39: 65.84705882 | J39: 69.30588235 | K39: 75.4 | L39: 90.21176471 | M39: 107.2823529 | N39: 128.8941176 | O39: 171.6731765
A40: =IF($C$10=25,I40,NA()) ->  | B40: =IF($C$10=25,J40,NA()) ->  | H40: Laos | I40: 65.78823529 | J40: 72.51764706 | K40: 83.81176471 | L40: 93.97647059 | M40: 113.3058824 | N40: 136.1176471 | O40: 175.1322353
A41: =IF($C$10=26,I41,NA()) ->  | B41: =IF($C$10=26,J41,NA()) ->  | H41: Liban | I41: 61.47058824 | J41: 65.05905882 | K41: 78.8 | L41: 82.78841176 | M41: 103.3647059 | N41: 121.7411765 | O41: 155.5908235
A42: =IF($C$10=27,I42,NA()) ->  | B42: =IF($C$10=27,J42,NA()) ->  | H42: Malaisie | I42: 65.2 | J42: 74.00011765 | K42: 79.57647059 | L42: 93.824 | M42: 118.3647059 | N42: 151.5411765 | O42: 188.7790588
A43: =IF($C$10=28,I43,NA()) ->  | B43: =IF($C$10=28,J43,NA()) ->  | H43: Maldives | I43: 66.70588235 | J43: 73.612 | K43: 87.36470588 | L43: 98.58864706 | M43: 119.2941176 | N43: 139.1058824 | O43: 187.8261176
A44: =IF($C$10=29,I44,NA()) ->  | B44: =IF($C$10=29,J44,NA()) ->  | H44: Mongolie | I44: 67.72941176 | J44: 76.28276471 | K44: 94.96470588 | L44: 112.3653529 | M44: 134.0470588 | N44: 158.7058824 | O44: 203.144
A45: =IF($C$10=30,I45,NA()) ->  | B45: =IF($C$10=30,J45,NA()) ->  | H45: Népal | I45: 86.67058824 | J45: 91.02364706 | K45: 108.7764706 | L45: 120.1890588 | M45: 147.0941176 | N45: 173 | O45: 242.9672941
A46: =IF($C$10=31,I46,NA()) ->  | B46: =IF($C$10=31,J46,NA()) ->  | H46: Oman | I46: 65.64705882 | J46: 66.55317647 | K46: 77.35294118 | L46: 93.20035294 | M46: 106.5882353 | N46: 131.9411765 | O46: 177.8611765
A47: =IF($C$10=32,I47,NA()) ->  | B47: =IF($C$10=32,J47,NA()) ->  | H47: Ouzbékistan | I47: 59.77647059 | J47: 67.836 | K47: 77.85882353 | L47: 87.12982353 | M47: 106.4705882 | N47: 122.8705882 | O47: 160.4143529
A48: =IF($C$10=33,I48,NA()) ->  | B48: =IF($C$10=33,J48,NA()) ->  | H48: Pakistan | I48: 56.76470588 | J48: 62.45917647 | K48: 73.08235294 | L48: 84.82388235 | M48: 102.4823529 | N48: 122.9411765 | O48: 153.6849412
A49: =IF($C$10=34,I49,NA()) ->  | B49: =IF($C$10=34,J49,NA()) ->  | H49: Philippines | I49: 59.52941176 | J49: 68.97664706 | K49: 84.05882353 | L49: 95.69452941 | M49: 120.9176471 | N49: 149.2941176 | O49: 188.8731765
A50: =IF($C$10=35,I50,NA()) ->  | B50: =IF($C$10=35,J50,NA()) ->  | H50: Qatar | I50: 59.10588235 | J50: 73.60058824 | K50: 84.17647059 | L50: 88.97658824 | M50: 113.4941176 | N50: 143.8117647 | O50: 180.7908235
A51: =IF($C$10=36,I51,NA()) ->  | B51: =IF($C$10=36,J51,NA()) ->  | H51: République populaire de Chine (RPC) | I51: 58.71764706 | J51: 67.49441176 | K51: 75.31764706 | L51: 89.00005882 | M51: 109.7058824 | N51: 136.4588235 | O51: 166.6614118
A52: =IF($C$10=37,I52,NA()) ->  | B52: =IF($C$10=37,J52,NA()) ->  | H52: Russie | I52: 57.95294118 | J52: 66.89417647 | K52: 83.02352941 | L52: 88.50617647 | M52: 131.6588235 | N52: 132.8352941 | O52: 160.8494118
A53: =IF($C$10=38,I53,NA()) ->  | B53: =IF($C$10=38,J53,NA()) ->  | H53: Singapour | I53: 61.44705882 | J53: 62.11782353 | K53: 80.08235294 | L53: 84.32976471 | M53: 102.5411765 | N53: 133.1647059 | O53: 173.7908235
A54: =IF($C$10=39,I54,NA()) ->  | B54: =IF($C$10=39,J54,NA()) ->  | H54: Sri Lanka | I54: 66.88235294 | J54: 67.29447059 | K54: 86.75305882 | L54: 93.15341176 | M54: 105.4470588 | N54: 136.7764706 | O54: 171.8261176
A55: =IF($C$10=40,I55,NA()) ->  | B55: =IF($C$10=40,J55,NA()) ->  | H55: Syrie | I55: 55.32941176 | J55: 57.29458824 | K55: 76.98835294 | L55: 82.47105882 | M55: 95.08235294 | N55: 122.5647059 | O55: 151.6258824
A56: =IF($C$10=41,I56,NA()) ->  | B56: =IF($C$10=41,J56,NA()) ->  | H56: Tadjikistan | I56: 59.11764706 | J56: 60.98858824 | K56: 72.41188235 | L56: 84.96511765 | M56: 98.70588235 | N56: 122.0352941 | O56: 156.1905882
A57: =IF($C$10=42,I57,NA()) ->  | B57: =IF($C$10=42,J57,NA()) ->  | H57: Thaïlande | I57: 74.27058824 | J57: 74.00029412 | K57: 93.16482353 | L57: 104.4828235 | M57: 119.6823529 | N57: 147.3529412 | O57: 182.732
A58: =IF($C$10=43,I58,NA()) ->  | B58: =IF($C$10=43,J58,NA()) ->  | H58: Timor oriental | I58: 60.55294118 | J58: 63.44723529 | K58: 79.40011765 | L58: 91.80035294 | M58: 115.9176471 | N58: 136.2 | O58: 188.1790588
A59: =IF($C$10=44,I59,NA()) ->  | B59: =IF($C$10=44,J59,NA()) ->  | H59: Turkménistan | I59: 57.49411765 | J59: 60.34117647 | K59: 71.00014118 | L59: 84.871 | M59: 97.37647059 | N59: 122.4588235 | O59: 155.4729412
A60: =IF($C$10=45,I60,NA()) ->  | B60: =IF($C$10=45,J60,NA()) ->  | H60: Turquie | I60: 54.82352941 | J60: 63.07070588 | K60: 73.70588235 | L60: 82.31794118 | M60: 101.0705882 | N60: 124.3411765 | O60: 161.8136471
A61: =IF($C$10=46,I61,NA()) ->  | B61: =IF($C$10=46,J61,NA()) ->  | H61: Viêt Nam | I61: 68.28235294 | J61: 75.12970588 | K61: 93.85882353 | L61: 98.44758824 | M61: 119.9176471 | N61: 147.9882353 | O61: 184.532
A62: =IF($C$10=47,I62,NA()) ->  | B62: =IF($C$10=47,J62,NA()) ->  | H62: Yémen | I62: 56.32941176 | J62: 68.63529412 | K62: 85.68235294 | L62: 99.68270588 | M62: 126.4588235 | N62: 159.8823529 | O62: 227.0494118
A63: =IF($C$10=48,I63,NA()) ->  | B63: =IF($C$10=48,J63,NA()) ->  | H63: Chypre | I63: 64.13181818 | J63: 70.14681818 | K63: 90.04224599 | L63: 96.13252941 | M63: 118.0639037 | N63: 158.6879679 | O63: 139.3558958
R65: Superficie : 44,58 millions km²
R66: Population : 4,561 milliards (2018)
R67: Densité : 99 hab./km2

Sheet PAYS AFRIQUE
I6: AFRIQUE
I7: 54 PAYS
A9: Cellule liée | C9: 15
A11: SOLSTICE | C11: SOLSTICE | E11: SOLSTICE | G11: SOLSTICE | I11: SOLSTICE | K11: SOLSTICE | M11: SOLSTICE | O11: EQUINOXE
A12: 2019 | C12: 2020 | E12: 2021 | G12: 2022 | I12: 2019 | K12: 2020 | M12: 2021 | O12: 2022
A13: ÉTÉ | B13: HIVER | C13: ÉTÉ | D13: HIVER | E13: ÉTÉ | F13: HIVER | G13: ÉTÉ | I13: ÉTÉ | J13: HIVER | K13: ÉTÉ | L13: HIVER | M13: ÉTÉ | N13: HIVER | O13: PRINTEMPS | P13: HIVER
A14: 2019-06-21 | B14: 2019-12-22 | C14: 2019-06-20 | D14: 2020-12-21 | E14: 2021-06-20 | F14: 2021-12-21 | G14: 2022-06-20 | I14: 2019-06-21 | J14: 2019-12-22 | K14: 2020-06-20 | L14: 2020-12-21 | M14: 2021-06-20 | N14: 2021-12-21 | O14: 2022-03-20 | P14: 2022-12-21
A15: =IF($C$9=1,I15,NA()) ->  | B15: =IF($C$9=1,J15,NA()) ->  | H15: Afrique du Sud | I15: 68.67058824 | J15: 73.42352941 | K15: 90.72941176 | L15: 106.6588235 | M15: 137.7647059 | N15: 169.6235294 | O15: 196.1058824 | P15: 850
A16: =IF($C$9=2,I16,NA()) ->  | B16: =IF($C$9=2,J16,NA()) ->  | H16: Algérie | I16: 60.4 | J16: 69.34117647 | K16: 78.50588235 | L16: 94.17647059 | M16: 111.9411765 | N16: 139.2941176 | O16: 171.4470588 | P16: 700
A17: =IF($C$9=3,I17,NA()) ->  | B17: =IF($C$9=3,J17,NA()) ->  | H17: Angola | I17: 57.58823529 | J17: 68.57647059 | K17: 74.74117647 | L17: 88.98823529 | M17: 106.3529412 | N17: 131.3411765 | O17: 156.9882353 | P17: 650
A18: =IF($C$9=4,I18,NA()) ->  | B18: =IF($C$9=4,J18,NA()) ->  | H18: Bénin | I18: 55.75294118 | J18: 67.84705882 | K18: 72.32941176 | L18: 90.17647059 | M18: 102.1176471 | N18: 148.0705882 | O18: 155.4823529 | P18: 800
A19: =IF($C$9=5,I19,NA()) ->  | B19: =IF($C$9=5,J19,NA()) ->  | H19: Botswana | I19: 59.88235294 | J19: 70.57647059 | K19: 75.97647059 | L19: 93.36470588 | M19: 108.4705882 | N19: 133.6 | O19: 155.8941176 | P19: 750
A20: =IF($C$9=6,I20,NA()) ->  | B20: =IF($C$9=6,J20,NA()) ->  | H20: Burkina Faso | I20: 63.56470588 | J20: 65.15294118 | K20: 75.38823529 | L20: 94.01176471 | M20: 111.0705882 | N20: 138.0823529 | O20: 162.5411765 | P20: 880
A21: =IF($C$9=7,I21,NA()) ->  | B21: =IF($C$9=7,J21,NA()) ->  | H21: Burundi | I21: 60.56470588 | J21: 67.32941176 | K21: 71.28235294 | L21: 89.03529412 | M21: 103.3411765 | N21: 127.0470588 | O21: 152.2117647 | P21: 880
A22: =IF($C$9=8,I22,NA()) ->  | B22: =IF($C$9=8,J22,NA()) ->  | H22: Cameroun | I22: 63.48235294 | J22: 74.6 | K22: 82.29411765 | L22: 99.95294118 | M22: 116.0352941 | N22: 141.1529412 | O22: 167.1764706 | P22: 880
A23: =IF($C$9=9,I23,NA()) ->  | B23: =IF($C$9=9,J23,NA()) ->  | H23: Cap-Vert | I23: 70.82352941 | J23: 77.72941176 | K23: 106.6470588 | L23: 122.6705882 | M23: 140.6 | N23: 165.3176471 | O23: 189.4470588 | P23: 870
A24: =IF($C$9=10,I24,NA()) ->  | B24: =IF($C$9=10,J24,NA()) ->  | H24: Comores | I24: 63.64705882 | J24: 75.22352941 | K24: 83.04705882 | L24: 103.8235294 | M24: 118.2 | N24: 150.8588235 | O24: 182.0588235 | P24: 800
A25: =IF($C$9=11,I25,NA()) ->  | B25: =IF($C$9=11,J25,NA()) ->  | H25: Côte d’Ivoire | I25: 66.29411765 | J25: 72.08235294 | K25: 77.75294118 | L25: 96.50588235 | M25: 111.9882353 | N25: 136.6705882 | O25: 165.7529412 | P25: 500
A26: =IF($C$9=12,I26,NA()) ->  | B26: =IF($C$9=12,J26,NA()) ->  | H26: Djibouti | I26: 61.34117647 | J26: 68.30588235 | K26: 74.82352941 | L26: 90.69411765 | M26: 109.8235294 | N26: 139.9529412 | O26: 161.1294118 | P26: 650
A27: =IF($C$9=13,I27,NA()) ->  | B27: =IF($C$9=13,J27,NA()) ->  | H27: Égypte | I27: 75.85882353 | J27: 87.65882353 | K27: 106.2117647 | L27: 118.4588235 | M27: 143.1882353 | N27: 171.7411765 | O27: 202.9294118 | P27: 620
A28: =IF($C$9=14,I28,NA()) ->  | B28: =IF($C$9=14,J28,NA()) ->  | H28: Érythrée | I28: 59.61176471 | J28: 70.49411765 | K28: 90.95294118 | L28: 104.6235294 | M28: 122.1294118 | N28: 155.4823529 | O28: 193.4 | P28: 580
A29: =IF($C$9=15,I29,NA()) -> 58.87058824 | B29: =IF($C$9=15,J29,NA()) -> 74.11764706 | C29: 75.89411765 | D29: 87.24705882 | E29: 104.1294118 | F29: 143.5411765 | G29: 184.6941176 | H29: Eswatini | I29: 58.87058824 | J29: 74.11764706 | K29: 75.89411765 | L29: 87.24705882 | M29: 104.1294118 | N29: 143.5411765 | O29: 184.6941176 | P29: 650
A30: =IF($C$9=16,I30,NA()) ->  | B30: =IF($C$9=16,J30,NA()) ->  | H30: Éthiopie | I30: 57.34117647 | J30: 69.8 | K30: 75.94117647 | L30: 87.63529412 | M30: 100.1294118 | N30: 134.5294118 | O30: 162.4352941 | P30: 750
A31: =IF($C$9=17,I31,NA()) ->  | B31: =IF($C$9=17,J31,NA()) ->  | H31: Gabon | I31: 66.58823529 | J31: 70.22352941 | K31: 79.96470588 | L31: 93.6 | M31: 110.7411765 | N31: 143.5647059 | O31: 166.3882353 | P31: 900
A32: =IF($C$9=18,I32,NA()) ->  | B32: =IF($C$9=18,J32,NA()) ->  | H32: Gambie | I32: 57.72941176 | J32: 59.27058824 | K32: 73.63529412 | L32: 88.16470588 | M32: 100.0941176 | N32: 129.5058824 | O32: 162.3058824 | P32: 920
A33: =IF($C$9=19,I33,NA()) ->  | B33: =IF($C$9=19,J33,NA()) ->  | H33: Ghana | I33: 59.37647059 | J33: 63.87058824 | K33: 78.05882353 | L33: 90.82352941 | M33: 103.6588235 | N33: 133.0470588 | O33: 162.5764706 | P33: 950
A34: =IF($C$9=20,I34,NA()) ->  | B34: =IF($C$9=20,J34,NA()) ->  | H34: Guinée | I34: 67.4 | J34: 73.09411765 | K34: 88.08235294 | L34: 101.0352941 | M34: 124.8588235 | N34: 167.5058824 | O34: 194.0117647 | P34: 750
A35: =IF($C$9=21,I35,NA()) ->  | B35: =IF($C$9=21,J35,NA()) ->  | H35: Guinée équatoriale | I35: 69.96470588 | J35: 81.42352941 | K35: 100.6117647 | L35: 113.8470588 | M35: 145.5411765 | N35: 168.4117647 | O35: 186.9411765 | P35: 840
A36: =IF($C$9=22,I36,NA()) ->  | B36: =IF($C$9=22,J36,NA()) ->  | H36: Guinée-Bissau | I36: 63.84705882 | J36: 79.67058824 | K36: 86.08235294 | L36: 107.6941176 | M36: 123.9647059 | N36: 156.6941176 | O36: 182.3647059 | P36: 750
A37: =IF($C$9=23,I37,NA()) ->  | B37: =IF($C$9=23,J37,NA()) ->  | H37: Kenya | I37: 63.98823529 | J37: 69.45882353 | K37: 79.96470588 | L37: 91.87058824 | M37: 103.1647059 | N37: 138.8352941 | O37: 166.4705882 | P37: 840
A38: =IF($C$9=24,I38,NA()) ->  | B38: =IF($C$9=24,J38,NA()) ->  | H38: Lesotho | I38: 64.78823529 | J38: 73.91764706 | K38: 83.98823529 | L38: 101.0470588 | M38: 116.1294118 | N38: 150.3882353 | O38: 177.4823529 | P38: 750
A39: =IF($C$9=25,I39,NA()) ->  | B39: =IF($C$9=25,J39,NA()) ->  | H39: Liberia | I39: 65 | J39: 68.87058824 | K39: 80.48235294 | L39: 89.43529412 | M39: 114.0352941 | N39: 139.0588235 | O39: 164.5294118 | P39: 980
A40: =IF($C$9=26,I40,NA()) ->  | B40: =IF($C$9=26,J40,NA()) ->  | H40: Libye | I40: 58.30588235 | J40: 60.29411765 | K40: 70.8 | L40: 82.18823529 | M40: 95.30588235 | N40: 122.2470588 | O40: 142.5882353 | P40: 100
A41: =IF($C$9=27,I41,NA()) ->  | B41: =IF($C$9=27,J41,NA()) ->  | H41: Madagascar | I41: 72.4 | J41: 85.50588235 | K41: 105.0705882 | L41: 107.4354353 | M41: 147.2352941 | N41: 172.0588235 | O41: 198.6588235 | P41: 120
A42: =IF($C$9=28,I42,NA()) ->  | B42: =IF($C$9=28,J42,NA()) ->  | H42: Malawi | I42: 65.47058824 | J42: 75.44705882 | K42: 81.92941176 | L42: 98.49414118 | M42: 113.8705882 | N42: 139.7882353 | O42: 167.1882353 | P42: 140
A43: =IF($C$9=29,I43,NA()) ->  | B43: =IF($C$9=29,J43,NA()) ->  | H43: Mali | I43: 56.07058824 | J43: 62.24705882 | K43: 73.64705882 | L43: 86.91769412 | M43: 102.2470588 | N43: 126.4705882 | O43: 159.6588235 | P43: 150
A44: =IF($C$9=30,I44,NA()) ->  | B44: =IF($C$9=30,J44,NA()) ->  | H44: Maroc | I44: 63.96470588 | J44: 70.61176471 | K44: 81.25882353 | L44: 94.89411765 | M44: 110.2 | N44: 139.5882353 | O44: 175.1647059 | P44: 100
A45: =IF($C$9=31,I45,NA()) ->  | B45: =IF($C$9=31,J45,NA()) ->  | H45: Maurice | I45: 69.89411765 | J45: 83.69411765 | K45: 90.32941176 | L45: 107.6118118 | M45: 123.8235294 | N45: 158.5647059 | O45: 183.5176471 | P45: 140
A46: =IF($C$9=32,I46,NA()) ->  | B46: =IF($C$9=32,J46,NA()) ->  | H46: Mauritanie | I46: 66.52941176 | J46: 71.25882353 | K46: 84.47058824 | L46: 95.48334118 | M46: 127.6823529 | N46: 159.2489412 | O46: 172.7176471 | P46: 140
A47: =IF($C$9=33,I47,NA()) ->  | B47: =IF($C$9=33,J47,NA()) ->  | H47: Mozambique | I47: 62.6 | J47: 74.38823529 | K47: 79.97647059 | L47: 95.89529412 | M47: 112.0117647 | N47: 141.6491765 | O47: 168.8 | P47: 140
A48: =IF($C$9=34,I48,NA()) ->  | B48: =IF($C$9=34,J48,NA()) ->  | H48: Namibie | I48: 62.35294118 | J48: 74.96941176 | K48: 81.98823529 | L48: 97.75390588 | M48: 108.9058824 | N48: 136.4374118 | O48: 163.3294118 | P48: 140
A49: =IF($C$9=35,I49,NA()) ->  | B49: =IF($C$9=35,J49,NA()) ->  | H49: Niger | I49: 59.42352941 | J49: 68.62352941 | K49: 77.75294118 | L49: 85.23628235 | M49: 132.4705882 | N49: 136.9663529 | O49: 161.0352941 | P49: 140
A50: =IF($C$9=36,I50,NA()) ->  | B50: =IF($C$9=36,J50,NA()) ->  | H50: Nigeria | I50: 57.67058824 | J50: 69.78823529 | K50: 79.03529412 | L50: 88.91861176 | M50: 113.1764706 | N50: 136.3545882 | O50: 158.1176471 | P50: 140
A51: =IF($C$9=37,I51,NA()) ->  | B51: =IF($C$9=37,J51,NA()) ->  | H51: Ouganda | I51: 57.84705882 | J51: 65.14117647 | K51: 74.48235294 | L51: 92.34211765 | M51: 106.2470588 | N51: 124.0369412 | O51: 155.5058824 | P51: 140
A52: =IF($C$9=38,I52,NA()) ->  | B52: =IF($C$9=38,J52,NA()) ->  | H52: République centrafricaine | I52: 70.32941176 | J52: 81.25882353 | K52: 100.5764706 | L52: 109.9068471 | M52: 134.1294118 | N52: 159.1315294 | O52: 183.6588235 | P52: 140
A53: =IF($C$9=39,I53,NA()) ->  | B53: =IF($C$9=39,J53,NA()) ->  | H53: République démocratique du Congo | I53: 72.92941176 | J53: 85.81176471 | K53: 103.2235294 | L53: 115.5539294 | M53: 149.5176471 | N53: 169.508 | O53: 188.1647059 | P53: 140
A54: =IF($C$9=40,I54,NA()) ->  | B54: =IF($C$9=40,J54,NA()) ->  | H54: République du Congo | I54: 59.67058824 | J54: 69.35294118 | K54: 82.32941176 | L54: 94.5184 | M54: 118.1882353 | N54: 144.4374118 | O54: 172.9411765 | P54: 140
A55: =IF($C$9=41,I55,NA()) ->  | B55: =IF($C$9=41,J55,NA()) ->  | H55: Rwanda | I55: 55.35294118 | J55: 61.09411765 | K55: 69.81176471 | L55: 82.23623529 | M55: 100.8588235 | N55: 124.0491765 | O55: 150.1882353 | P55: 140
A56: =IF($C$9=42,I56,NA()) ->  | B56: =IF($C$9=42,J56,NA()) ->  | H56: São Tomé-et-Principe | I56: 68.88235294 | J56: 78.52941176 | K56: 92.91764706 | L56: 103.1776941 | M56: 125.3294118 | N56: 309.6023529 | O56: 173.6705882 | P56: 140
A57: =IF($C$9=43,I57,NA()) ->  | B57: =IF($C$9=43,J57,NA()) ->  | H57: Sénégal | I57: 65.37647059 | J57: 67.07058824 | K57: 82.23529412 | L57: 96.31865882 | M57: 116.3647059 | N57: 137.5552941 | O57: 170.7058824 | P57: 140
A58: =IF($C$9=44,I58,NA()) ->  | B58: =IF($C$9=44,J58,NA()) ->  | H58: Seychelles | I58: 81.89411765 | J58: 94.07058824 | K58: 110.9058824 | L58: 121.6362588 | M58: 147.4 | N58: 162.7437647 | O58: 186.4470588 | P58: 140
A59: =IF($C$9=45,I59,NA()) ->  | B59: =IF($C$9=45,J59,NA()) ->  | H59: Sierra Leone | I59: 65.92941176 | J59: 83.49411765 | K59: 86.37647059 | L59: 91.68310588 | M59: 111.9529412 | N59: 129.5432941 | O59: 165.6 | P59: 140
A60: =IF($C$9=46,I60,NA()) ->  | B60: =IF($C$9=46,J60,NA()) ->  | H60: Somalie | I60: 65.22636166 | J60: 72.48823529 | K60: 85.25991285 | L60: 94.09878606 | M60: 109.2010893 | N60: 137.2762092 | O60: 167.8540305 | P60: 140
A61: =IF($C$9=47,I61,NA()) ->  | B61: =IF($C$9=47,J61,NA()) ->  | H61: Soudan | I61: 58.98823529 | J61: 76.67058824 | K61: 88.08235294 | L61: 100.8242588 | M61: 115.5647059 | N61: 140.1202353 | O61: 168.8705882 | P61: 140
A62: =IF($C$9=48,I62,NA()) ->  | B62: =IF($C$9=48,J62,NA()) ->  | H62: Soudan du Sud | I62: 57.99518717 | J62: 79.05347594 | K62: 96.63101604 | L62: 105.2790866 | M62: 133.468984 | N62: 154.684107 | O62: 177.5096257 | P62: 140
A63: =IF($C$9=49,I63,NA()) ->  | B63: =IF($C$9=49,J63,NA()) ->  | H63: Tanzanie | I63: 64.28235294 | J63: 70.88235294 | K63: 82.2 | L63: 91.74235294 | M63: 120.3176471 | N63: 138.3672941 | O63: 165.4588235 | P63: 140
A64: =IF($C$9=50,I64,NA()) ->  | B64: =IF($C$9=50,J64,NA()) ->  | H64: Tchad | I64: 57.88235294 | J64: 64.8 | K64: 75.04705882 | L64: 90.24804706 | M64: 100.5411765 | N64: 135.5672941 | O64: 156.0235294 | P64: 140
A65: =IF($C$9=51,I65,NA()) ->  | B65: =IF($C$9=51,J65,NA()) ->  | H65: Togo | I65: 63.05882353 | J65: 71.43529412 | K65: 81.71764706 | L65: 93.1892 | M65: 107.4823529 | N65: 135.8378824 | O65: 163.5411765 | P65: 140
A66: =IF($C$9=52,I66,NA()) ->  | B66: =IF($C$9=52,J66,NA()) ->  | H66: Tunisie | I66: 60.52941176 | J66: 70.17647059 | K66: 79.32941176 | L66: 96.01275294 | M66: 120.4470588 | N66: 144.3905882 | O66: 176.1176471 | P66: 140
A67: =IF($C$9=53,I67,NA()) ->  | B67: =IF($C$9=53,J67,NA()) ->  | H67: Zambie | I67: 57.49411765 | J67: 68.63529412 | K67: 82.85882353 | L67: 97.56571765 | M67: 117.2 | N67: 144.7792941 | O67: 167.9647059 | P67: 140
A68: =IF($C$9=54,I68,NA()) ->  | B68: =IF($C$9=54,J68,NA()) ->  | H68: Zimbabwe | I68: 65.28235294 | J68: 64.37647059 | K68: 82.32941176 | L68: 98.89508235 | M68: 118.6705882 | N68: 142.0496471 | O68: 171.2 | P68: 140
S72: Superficie : 30,37 millions km²
S73: Population : 1,216 milliard (2016)
S74: Densité : 44 hab./km2

Sheet PAYS D'OCEANIE
I6: OCEANIE
I7: 14 PAYS
A8: Cellule liée | C8: 4
A11: SOLSTICE | C11: SOLSTICE | E11: SOLSTICE | G11: SOLSTICE | I11: SOLSTICE | K11: SOLSTICE | M11: SOLSTICE | O11: EQUINOXE
A12: 2019 | C12: 2020 | E12: 2021 | G12: 2022 | I12: 2019 | K12: 2020 | M12: 2021 | O12: 2022
A13: ÉTÉ | B13: HIVER | C13: ÉTÉ | D13: HIVER | E13: ÉTÉ | F13: HIVER | G13: ÉTÉ | I13: ÉTÉ | J13: HIVER | K13: ÉTÉ | L13: HIVER | M13: ÉTÉ | N13: HIVER | O13: PRINTEMPS | P13: HIVER
A14: 2019-06-21 | B14: 2019-12-22 | C14: 2019-06-20 | D14: 2020-12-21 | E14: 2021-06-20 | F14: 2021-12-21 | G14: 2022-06-20 | I14: 2019-06-21 | J14: 2019-12-22 | K14: 2020-06-20 | L14: 2020-12-21 | M14: 2021-06-20 | N14: 2021-12-21 | O14: 2022-03-20 | P14: 2022-12-21
A15: =IF($C$8=1,I15,NA()) ->  | B15: =IF($C$8=1,J15,NA()) ->  | H15: Australie | I15: 80.35294118 | J15: 95.77788235 | K15: 111.1647059 | L15: 119.1647059 | M15: 136.8352941 | N15: 161.3294118 | O15: 212.4588235 | P15: 850
A16: =IF($C$8=2,I16,NA()) ->  | B16: =IF($C$8=2,J16,NA()) ->  | H16: États fédérés de Micronésie | I16: 81.6 | J16: 88.96588235 | K16: 106.3176471 | L16: 118.4588235 | M16: 137.9294118 | N16: 166.2588235 | O16: 202.5411765 | P16: 700
A17: =IF($C$8=3,I17,NA()) ->  | B17: =IF($C$8=3,J17,NA()) ->  | H17: Fidji | I17: 81.89411765 | J17: 92.46023529 | K17: 108.0705882 | L17: 117.1176471 | M17: 145.3058824 | N17: 170.0705882 | O17: 212.5882353 | P17: 650
A18: =IF($C$8=4,I18,NA()) -> 81.31764706 | B18: =IF($C$8=4,J18,NA()) -> 90.284 | C18: 107.7058824 | D18: 112.3764706 | E18: 137.6941176 | F18: 171.5176471 | G18: 213.6 | H18: Îles Marshall | I18: 81.31764706 | J18: 90.284 | K18: 107.7058824 | L18: 112.3764706 | M18: 137.6941176 | N18: 171.5176471 | O18: 213.6 | P18: 800
A19: =IF($C$8=5,I19,NA()) ->  | B19: =IF($C$8=5,J19,NA()) ->  | H19: Îles Salomon | I19: 80.10588235 | J19: 92.69552941 | K19: 104.9647059 | L19: 113.2352941 | M19: 135.5058824 | N19: 175.9882353 | O19: 211.4 | P19: 750
A20: =IF($C$8=6,I20,NA()) ->  | B20: =IF($C$8=6,J20,NA()) ->  | H20: Kiribati | I20: 80.96470588 | J20: 95.87223529 | K20: 108.0941176 | L20: 119.5058824 | M20: 141.2 | N20: 174.0117647 | O20: 211.9411765 | P20: 880
A21: =IF($C$8=7,I21,NA()) ->  | B21: =IF($C$8=7,J21,NA()) ->  | H21: Nauru | I21: 79.27058824 | J21: 94.84894118 | K21: 114.4705882 | L21: 118.3764706 | M21: 146.1411765 | N21: 169.9882353 | O21: 211.0705882 | P21: 880
A22: =IF($C$8=8,I22,NA()) ->  | B22: =IF($C$8=8,J22,NA()) ->  | H22: Nouvelle-Zélande | I22: 83.48235294 | J22: 98.61364706 | K22: 117.8235294 | L22: 130.4705882 | M22: 155.9058824 | N22: 185.2823529 | O22: 231.0705882 | P22: 880
A23: =IF($C$8=9,I23,NA()) ->  | B23: =IF($C$8=9,J23,NA()) ->  | H23: Palaos | I23: 80.37647059 | J23: 100.8604706 | K23: 122.7882353 | L23: 122.2705882 | M23: 145.2941176 | N23: 174.2588235 | O23: 209.3294118 | P23: 870
A24: =IF($C$8=10,I24,NA()) ->  | B24: =IF($C$8=10,J24,NA()) ->  | H24: Papouasie-Nouvelle-Guinée | I24: 78.74117647 | J24: 98.44847059 | K24: 116.7294118 | L24: 125.6941176 | M24: 144.6352941 | N24: 174.4823529 | O24: 222.2235294 | P24: 800
A25: =IF($C$8=11,I25,NA()) ->  | B25: =IF($C$8=11,J25,NA()) ->  | H25: Samoa | I25: 78.50588235 | J25: 93.62494118 | K25: 110.7411765 | L25: 122.1411765 | M25: 141.8705882 | N25: 180.6235294 | O25: 222.2117647 | P25: 500
A26: =IF($C$8=12,I26,NA()) ->  | B26: =IF($C$8=12,J26,NA()) ->  | H26: Tonga | I26: 82.24705882 | J26: 94.83694118 | K26: 112.2352941 | L26: 131.0588235 | M26: 140.6470588 | N26: 183.7764706 | O26: 228.0941176 | P26: 650
A27: =IF($C$8=13,I27,NA()) ->  | B27: =IF($C$8=13,J27,NA()) ->  | H27: Tuvalu | I27: 83.50588235 | J27: 91.33082353 | K27: 105.9294118 | L27: 122.8352941 | M27: 152.6470588 | N27: 168.7411765 | O27: 219.0941176 | P27: 620
A28: =IF($C$8=14,I28,NA()) ->  | B28: =IF($C$8=14,J28,NA()) ->  | H28: Vanuatu | I28: 82.52941176 | J28: 96.91952941 | K28: 123.8470588 | L28: 132.6823529 | M28: 156.6588235 | N28: 180.3529412 | O28: 223.2705882 | P28: 580
R38: Population : 42 352 038 hab. (2019)
R39: Densité : 5 hab./km2
R40: Superficie : 8 525 989 km2

Sheet ANTARCTIQUE
B6: ANTARCTIQUE
B7: (NON HABITE)
B9: SOLSTICE | D9: SOLSTICE | F9: SOLSTICE | H9: EQUINOXE
B10: 2019 | D10: 2020 | F10: 2021 | H10: 2022
B11: ÉTÉ | C11: HIVER | D11: ÉTÉ | E11: HIVER | F11: ÉTÉ | G11: HIVER | H11: PRINTEMPS | I11: HIVER
B12: 2019-06-21 | C12: 2019-12-22 | D12: 2020-06-20 | E12: 2020-12-21 | F12: 2021-06-20 | G12: 2021-12-21 | H12: 2022-03-20 | I12: 2022-12-21
B13: 201 | C13: 245 | D13: 257 | E13: 394 | F13: 307 | G13: 574 | H13: 582 | I13: 850
